fUSD/lending_fUSD_20250215
["ID","MTS","AMOUNT","RATE_DAILY","PERIOD"]
[353169176,1739621451521,-500.0,0.000112,2]
[353169177,1739621451531,-500.0,0.000112,2]
[353169178,1739621451540,-500.0,0.000112,2]
[353169179,1739621451549,-882.1,0.000112,2]
[353169180,1739621451559,-611.8,0.000112,2]
[353169181,1739621451568,-943.71,0.000112,2]
[353169182,1739621451577,-500.0,0.000112,2]
[353169183,1739621451586,-500.0,0.000112,2]
[353169184,1739621451596,-500.0,0.000112,2]
[353169185,1739621451605,-500.0,0.000112,2]
[353169186,1739621451614,-1230.93,0.000112,2]
[353169187,1739621451624,-861.45,0.000112,2]
[353169188,1739621451633,-369.38,0.000112,2]
[353169189,1739621451643,-500.0,0.000112,2]
[353169190,1739621451652,-518.15,0.000112,2]
[353169191,1739621451661,-500.0,0.000112,2]
[353169192,1739621451670,-500.0,0.000112,2]
[353169193,1739621451680,-500.0,0.000112,2]
[353169194,1739621451689,-500.0,0.000112,2]
[353169195,1739621451698,-500.0,0.000112,2]
[353169196,1739621451707,-460.31338355,0.000112,2]
[353169197,1739621451716,-500.0,0.000112,2]
[353169198,1739621451726,-717.59,0.000112,2]
[353169199,1739621451735,-535.62,0.000112,2]
[353169200,1739621451744,-500.0,0.000112,2]
[353169201,1739621451754,-1000.0,0.000112,2]
[353169202,1739621451763,-578.12,0.000112,2]
[353169203,1739621451772,-627.02,0.000112,2]
[353169204,1739621451781,-500.0,0.000112,2]
[353169205,1739621451791,-500.0,0.000112,2]
[353169206,1739621451800,-744.06,0.000112,2]
[353169207,1739621451809,-175.86,0.000112,2]
[353169208,1739621451819,-500.0,0.000112,2]
[353169209,1739621451828,-868.06,0.000112,2]
[353169210,1739621451837,-500.0,0.000112,2]
[353169211,1739621451847,-500.0,0.000112,2]
[353169212,1739621451856,-500.0,0.000112,2]
[353169213,1739621451865,-500.0,0.000112,2]
[353169214,1739621451875,-736.48,0.000112,2]
[353169215,1739621451884,-500.0,0.000112,2]
[353169216,1739621451893,-500.0,0.000112,2]
[353169217,1739621451902,-574.15,0.000112,2]
[353169218,1739621451911,-385.66,0.000112,2]
[353169219,1739621451920,-763.47,0.000112,2]
[353169220,1739621451931,-500.0,0.000112,2]
[353169221,1739621451940,-500.0,0.000112,2]
[353169222,1739621451951,-500.0,0.000112,2]
[353169223,1739621451960,-718.94,0.000112,2]
[353169224,1739621451970,-647.64,0.000112,2]
[353169225,1739621451979,-672.52,0.000112,2]
[353169226,1739621451988,-500.0,0.000112,2]
[353169227,1739621451997,-500.0,0.000112,2]
[353169228,1739621452008,-500.0,0.000112,2]
[353169229,1739621452017,-698.15,0.000112,2]
[353169230,1739621452026,-500.0,0.000112,2]
[353169231,1739621452035,-1170.76,0.000112,2]
[353169232,1739621452044,-500.0,0.000112,2]
[353169233,1739621452054,-500.0,0.000112,2]
[353169234,1739621452063,-500.0,0.000112,2]
[353169235,1739621452072,-500.0,0.000112,2]
[353169236,1739621452082,-570.85,0.000112,2]
[353169237,1739621452091,-566.01,0.000112,2]
[353169238,1739621452101,-500.0,0.000112,2]
[353169239,1739621452110,-972.03,0.000112,2]
[353169240,1739621452119,-500.0,0.000112,2]
[353169241,1739621452128,-716.92,0.000112,2]
[353169242,1739621452138,-500.0,0.000112,2]
[353169243,1739621452148,-1044.77,0.000112,2]
[353169244,1739621452157,-500.0,0.000112,2]
[353169245,1739621452166,-563.88,0.000112,2]
[353169246,1739621452176,-873.28,0.000112,2]
[353169247,1739621452185,-500.0,0.000112,2]
[353169248,1739621452194,-475.0,0.000112,2]
[353169249,1739621452204,-556.54,0.000112,2]
[353169250,1739621452214,-500.0,0.000112,2]
[353169251,1739621452223,-500.0,0.000112,2]
[353169252,1739621452232,-500.0,0.000112,2]
[353169253,1739621452241,-1007.66,0.000112,2]
[353169254,1739621452250,-500.0,0.000112,2]
[353169255,1739621452259,-500.0,0.000112,2]
[353169256,1739621452268,-500.0,0.000112,2]
[353169257,1739621452278,-500.0,0.000112,2]
[353169258,1739621452287,-500.0,0.000112,2]
[353169259,1739621452296,-416.28,0.000112,2]
[353169260,1739621452306,-500.0,0.000112,2]
[353169261,1739621452316,-500.0,0.000112,2]
[353169262,1739621452325,-500.0,0.000112,2]
[353169263,1739621452334,-1261.88,0.000112,2]
[353169264,1739621452343,-500.0,0.000112,2]
[353169265,1739621452351,-445.2,0.000112,2]
[353169266,1739621452360,-500.0,0.000112,2]
[353169267,1739621452370,-389.43,0.000112,2]
[353169268,1739621452379,-769.13,0.000112,2]
[353169269,1739621452389,-500.0,0.000112,2]
[353169270,1739621452399,-500.0,0.000112,2]
[353169271,1739621452408,-500.0,0.000112,2]
[353169272,1739621452417,-725.48,0.000112,2]
[353169273,1739621452427,-500.0,0.000112,2]
[353169274,1739621452436,-808.21,0.000112,2]
[353169275,1739621452445,-500.0,0.000112,2]
[353169276,1739621452455,-500.0,0.000112,2]
[353169277,1739621452465,-500.0,0.000112,2]
[353169278,1739621452475,-536.38,0.000112,2]
[353169279,1739621452484,-1025.24,0.000112,2]
[353169280,1739621452494,-500.0,0.000112,2]
[353169281,1739621452504,-500.0,0.000112,2]
[353169282,1739621452513,-500.0,0.000112,2]
[353169283,1739621452521,-500.0,0.000112,2]
[353169284,1739621452530,-500.0,0.000112,2]
[353169285,1739621452539,-500.0,0.000112,2]
[353169286,1739621452549,-500.0,0.000112,2]
[353169287,1739621452559,-500.0,0.000112,2]
[353169288,1739621452568,-160.69896212,0.000112,2]
[353169289,1739621452578,-745.9,0.000112,2]
[353169290,1739621452587,-500.0,0.000112,2]
[353169291,1739621452597,-579.34,0.000112,2]
[353169292,1739621452607,-500.0,0.000112,2]
[353169293,1739621452616,-546.88,0.000112,2]
[353169294,1739621452626,-500.0,0.000112,2]
[353169295,1739621452635,-500.0,0.000112,2]
[353169296,1739621452644,-500.0,0.000112,2]
[353169297,1739621452654,-725.14,0.000112,2]
[353169298,1739621452665,-500.0,0.000112,2]
[353169299,1739621452675,-634.12,0.000112,2]
[353169300,1739621452685,-466.59,0.000112,2]
[353169301,1739621452696,-3415.25,0.000112,2]
[353169302,1739621452708,-151.2,0.000112,2]
[353169303,1739621452718,-500.0,0.000112,2]
[353169304,1739621452728,-500.0,0.000112,2]
[353169305,1739621452739,-362.21,0.000112,2]
[353169306,1739621452748,-519.51,0.000112,2]
[353169307,1739621452758,-500.0,0.00011201,2]
[353169308,1739621452768,-502.39,0.00011201,2]
[353169309,1739621452778,-358.13,0.00011201,2]
[353169310,1739621452788,-565.22,0.00011201,2]
[353169311,1739621452798,-513.14,0.00011201,2]
[353169312,1739621452808,-500.0,0.00011201,2]
[353169313,1739621452819,-638.81,0.00011201,2]
[353169314,1739621452829,-500.0,0.00011201,2]
[353169315,1739621452839,-446.14,0.00011201,2]
[353169316,1739621452849,-298.24,0.00011201,2]
[353169317,1739621452859,-188.64,0.00011201,2]
[353169318,1739621452869,-299.45,0.00011201,2]
[353169319,1739621452879,-331.15,0.00011201,2]
[353169320,1739621452889,-341.61,0.00011201,2]
[353169321,1739621452899,-345.83,0.00011201,2]
[353169322,1739621452909,-500.0,0.00011201,2]
[353169323,1739621452919,-500.0,0.00011201,2]
[353169324,1739621452930,-500.0,0.00011201,2]
[353169325,1739621452942,-500.0,0.00011201,2]
[353169326,1739621452952,-500.0,0.00011201,2]
[353169327,1739621452962,-500.0,0.00011201,2]
[353169328,1739621452971,-500.0,0.00011201,2]
[353169329,1739621452981,-500.0,0.00011201,2]
[353169330,1739621452990,-500.0,0.00011201,2]
[353169331,1739621453001,-500.0,0.00011201,2]
[353169332,1739621453013,-535.4,0.00011201,2]
[353169333,1739621453024,-500.0,0.00011201,2]
[353169334,1739621453033,-500.0,0.00011201,2]
[353169335,1739621453044,-500.0,0.00011201,2]
[353169336,1739621453053,-636.54,0.00011201,2]
[353169337,1739621453064,-500.0,0.00011201,2]
[353169338,1739621453074,-500.0,0.00011201,2]
[353169339,1739621453085,-500.0,0.00011201,2]
[353169340,1739621453094,-500.0,0.00011201,2]
[353169341,1739621453105,-500.0,0.00011201,2]
[353169342,1739621453115,-500.0,0.00011201,2]
[353169343,1739621453125,-500.0,0.00011201,2]
[353169344,1739621453136,-500.0,0.00011201,2]
[353169345,1739621453146,-500.0,0.00011201,2]
[353169346,1739621453155,-500.0,0.00011201,2]
[353169347,1739621453165,-643.28,0.00011201,2]
[353169348,1739621453175,-500.0,0.00011201,2]
[353169349,1739621453184,-500.0,0.00011201,2]
[353169350,1739621453193,-447.66,0.00011201,2]
[353169351,1739621453204,-500.0,0.00011201,2]
[353169352,1739621453213,-500.0,0.00011201,2]
[353169353,1739621453222,-500.0,0.00011201,2]
[353169354,1739621453232,-500.0,0.00011201,2]
[353169355,1739621453242,-446.22,0.00011201,2]
[353169356,1739621453253,-500.0,0.00011201,2]
[353169357,1739621453263,-500.0,0.00011201,2]
[353169358,1739621453273,-500.0,0.00011201,2]
[353169359,1739621453283,-500.0,0.00011201,2]
[353169360,1739621453293,-500.0,0.00011201,2]
[353169361,1739621453303,-500.0,0.00011201,2]
[353169362,1739621453313,-500.0,0.00011201,2]
[353169363,1739621453323,-500.0,0.00011201,2]
[353169364,1739621453333,-500.0,0.00011201,2]
[353169365,1739621453344,-500.0,0.00011201,2]
[353169366,1739621453354,-540.35,0.00011201,2]
[353169367,1739621453364,-196.75,0.00011201,2]
[353169368,1739621453375,-500.0,0.00011201,2]
[353169369,1739621453385,-500.0,0.00011201,2]
[353169370,1739621453394,-500.0,0.00011201,2]
[353169371,1739621453403,-475.0,0.00011201,2]
[353169372,1739621453413,-500.0,0.00011201,2]
[353169373,1739621453422,-532.02,0.00011201,2]
[353169374,1739621453432,-598.64,0.00011201,2]
[353169375,1739621453441,-500.0,0.00011201,2]
[353169376,1739621453452,-500.0,0.00011202,2]
[353169377,1739621453461,-1200.0,0.00011232,2]
[353169378,1739621453470,-1200.0,0.00011232,2]
[353169379,1739621453480,-387.7488238,0.0001125,2]
[353169380,1739621453489,-500.0,0.00011281,2]
[353169381,1739621453499,-506.35,0.00011281,2]
[353169382,1739621453509,-500.0,0.00011283,2]
[353169383,1739621453518,-626.98,0.00011283,2]
[353169384,1739621453528,-169.0,0.00011283,2]
[353169385,1739621453538,-500.0,0.00011283,2]
[353169386,1739621453547,-500.0,0.00011283,2]
[353169387,1739621453557,-500.0,0.00011283,2]
[353169388,1739621453567,-500.0,0.00011283,2]
[353169389,1739621453578,-500.0,0.00011283,2]
[353169390,1739621453588,-500.0,0.00011283,2]
[353169391,1739621453599,-500.0,0.00011283,2]
[353169392,1739621453610,-288.14,0.00011283,2]
[353169393,1739621453620,-500.0,0.00011283,2]
[353169394,1739621453631,-500.0,0.00011283,2]
[353169395,1739621453642,-500.0,0.00011283,2]
[353169396,1739621453652,-500.0,0.00011283,2]
[353169397,1739621453662,-500.0,0.00011283,2]
[353169398,1739621453672,-168.28,0.00011283,2]
[353169399,1739621453682,-500.0,0.00011283,2]
[353169400,1739621453692,-500.0,0.00011283,2]
[353169401,1739621453703,-500.0,0.00011283,2]
[353169402,1739621453712,-500.0,0.00011283,2]
[353169403,1739621453723,-500.0,0.00011283,2]
[353169404,1739621453732,-500.0,0.00011283,2]
[353169405,1739621453742,-500.0,0.00011283,2]
[353169406,1739621453752,-500.0,0.00011283,2]
[353169407,1739621453761,-500.0,0.00011283,2]
[353169408,1739621453770,-500.0,0.00011283,2]
[353169409,1739621453780,-500.0,0.00011283,2]
[353169410,1739621453789,-500.0,0.00011283,2]
[353169411,1739621453799,-500.0,0.00011283,2]
[353169412,1739621453809,-500.0,0.00011283,2]
[353169413,1739621453818,-500.0,0.00011283,2]
[353169414,1739621453827,-500.0,0.00011283,2]
[353169415,1739621453837,-500.0,0.00011283,2]
[353169416,1739621453846,-500.0,0.00011283,2]
[353169417,1739621453855,-590.26,0.00011283,2]
[353169418,1739621453864,-500.0,0.00011283,2]
[353169419,1739621453873,-500.0,0.00011283,2]
[353169420,1739621453883,-500.0,0.00011283,2]
[353169421,1739621453892,-452.47908985,0.00011283,2]
[353169422,1739621453902,-500.0,0.00011283,2]
[353169423,1739621453911,-500.0,0.00011283,2]
[353169424,1739621453921,-500.0,0.00011283,2]
[353169425,1739621453932,-500.0,0.00011283,2]
[353169426,1739621453943,-500.0,0.00011283,2]
[353169427,1739621453953,-2095.15,0.00011283,2]
[353169428,1739621453962,-500.0,0.00011283,2]
[353169429,1739621453972,-500.0,0.00011283,2]
[353169430,1739621453982,-500.0,0.00011283,2]
[353169431,1739621453991,-500.0,0.00011283,2]
[353169432,1739621454000,-500.0,0.00011283,2]
[353169433,1739621454011,-500.0,0.00011283,2]
[353169434,1739621454021,-500.0,0.00011283,2]
[353169435,1739621454031,-500.0,0.00011283,2]
[353169436,1739621454042,-500.0,0.00011283,2]
[353169437,1739621454052,-500.0,0.00011283,2]
[353169438,1739621454062,-500.0,0.00011283,2]
[353169439,1739621454072,-500.0,0.00011283,2]
[353169440,1739621454082,-500.0,0.00011283,2]
[353169441,1739621454093,-500.0,0.00011283,2]
[353169442,1739621454103,-500.0,0.00011283,2]
[353169443,1739621454113,-316.64,0.00011283,2]
[353169444,1739621454122,-500.0,0.00011283,2]
[353169445,1739621454131,-500.0,0.00011283,2]
[353169446,1739621454141,-500.0,0.00011283,2]
[353169447,1739621454151,-500.0,0.00011283,2]
[353169448,1739621454161,-154.788116,0.00011283,2]
[353169449,1739621454171,-500.0,0.00011283,2]
[353169450,1739621454182,-500.0,0.00011283,2]
[353169451,1739621454192,-500.0,0.00011283,2]
[353169452,1739621454203,-500.0,0.00011283,2]
[353169453,1739621454212,-500.0,0.00011283,2]
[353169454,1739621454222,-554.36,0.00011283,2]
[353169455,1739621454232,-500.0,0.00011283,2]
[353169456,1739621454242,-500.0,0.00011283,2]
[353169457,1739621454252,-500.0,0.00011283,2]
[353169458,1739621454262,-500.0,0.00011283,2]
[353169459,1739621454271,-500.0,0.00011283,2]
[353169460,1739621454281,-500.0,0.00011283,2]
[353169461,1739621454291,-500.0,0.00011283,2]
[353169462,1739621454300,-500.0,0.00011283,2]
[353169463,1739621454311,-500.0,0.00011283,2]
[353169464,1739621454321,-367.21,0.00011283,2]
[353169465,1739621454331,-500.0,0.00011283,2]
[353169466,1739621454341,-500.0,0.00011283,2]
[353169467,1739621454351,-500.0,0.00011283,2]
[353169468,1739621454361,-500.0,0.00011283,2]
[353169469,1739621454372,-500.0,0.00011283,2]
[353169470,1739621454383,-500.0,0.00011283,2]
[353169471,1739621454393,-500.0,0.00011283,2]
[353169472,1739621454403,-500.0,0.00011283,2]
[353169473,1739621454414,-500.0,0.00011283,2]
[353169474,1739621454424,-608.41,0.00011283,2]
[353169475,1739621454434,-500.0,0.00011283,2]
[353169476,1739621454444,-560.06,0.00011283,2]
[353169477,1739621454455,-687.05,0.00011283,2]
[353169478,1739621454464,-500.0,0.00011283,2]
[353169479,1739621454474,-225.32,0.00011283,2]
[353169480,1739621454485,-500.0,0.00011283,2]
[353169481,1739621454495,-953.67,0.00011283,2]
[353169482,1739621454505,-500.0,0.00011283,2]
[353169483,1739621454516,-500.0,0.00011283,2]
[353169484,1739621454527,-804.93,0.00011283,2]
[353169485,1739621454537,-298.05,0.00011283,2]
[353169486,1739621454547,-500.0,0.00011283,2]
[353169487,1739621454557,-313.04,0.00011283,2]
[353169488,1739621454568,-653.48,0.00011283,2]
[353169489,1739621454578,-500.0,0.00011283,2]
[353169490,1739621454587,-500.0,0.00011283,2]
[353169491,1739621454597,-505.82,0.00011283,2]
[353169492,1739621454607,-500.0,0.00011283,2]
[353169493,1739621454618,-500.0,0.00011283,2]
[353169494,1739621454628,-1274.49,0.00011283,2]
[353169495,1739621454638,-500.0,0.00011283,2]
[353169496,1739621454648,-500.0,0.00011283,2]
[353169497,1739621454659,-2251.78,0.00011283,2]
[353169498,1739621454669,-500.0,0.00011283,2]
[353169499,1739621454680,-462.21,0.00011283,2]
[353169500,1739621454690,-522.34,0.00011283,2]
[353169501,1739621454701,-664.52,0.00011283,2]
[353169502,1739621454712,-734.97,0.00011283,2]
[353169503,1739621454723,-500.0,0.00011283,2]
[353169504,1739621454734,-500.0,0.00011283,2]
[353169505,1739621454744,-382.87,0.00011283,2]
[353169506,1739621454755,-500.0,0.00011283,2]
[353169507,1739621454765,-500.0,0.00011283,2]
[353169508,1739621454775,-882.1,0.00011283,2]
[353169509,1739621454786,-611.8,0.00011283,2]
[353169510,1739621454796,-943.71,0.00011283,2]
[353169511,1739621454807,-500.0,0.00011283,2]
[353169512,1739621454817,-500.0,0.00011283,2]
[353169513,1739621454828,-500.0,0.00011283,2]
[353169514,1739621454838,-500.0,0.00011283,2]
[353169515,1739621454848,-1230.93,0.00011283,2]
[353169516,1739621454858,-861.45,0.00011283,2]
[353169517,1739621454868,-500.0,0.00011283,2]
[353169518,1739621454878,-500.0,0.00011283,2]
[353169519,1739621454888,-500.0,0.00011283,2]
[353169520,1739621454897,-500.0,0.00011283,2]
[353169521,1739621454907,-529.64,0.00011283,2]
[353169522,1739621454917,-500.0,0.00011283,2]
[353169523,1739621454929,-717.59,0.00011283,2]
[353169524,1739621454940,-535.62,0.00011283,2]
[353169525,1739621454952,-500.0,0.00011283,2]
[353169526,1739621454963,-1131.83,0.00011283,2]
[353169527,1739621454973,-578.12,0.00011283,2]
[353169528,1739621454983,-627.02,0.00011283,2]
[353169529,1739621454994,-500.0,0.00011283,2]
[353169530,1739621455005,-211.93,0.00011283,2]
[353169531,1739621455016,-744.06,0.00011283,2]
[353169532,1739621455027,-500.0,0.00011283,2]
[353169533,1739621455037,-868.06,0.00011283,2]
[353169534,1739621455048,-500.0,0.00011283,2]
[353169535,1739621455059,-597.38,0.00011283,2]
[353169536,1739621455070,-736.48,0.00011283,2]
[353169537,1739621455262,-500.0,0.00011283,2]
[353169538,1739621455279,-574.15,0.00011283,2]
[353169539,1739621455290,-763.47,0.00011283,2]
[353169540,1739621455300,-500.0,0.00011283,2]
[353169541,1739621455310,-718.94,0.00011283,2]
[353169542,1739621455320,-647.64,0.00011283,2]
[353169543,1739621455329,-672.52,0.00011283,2]
[353169544,1739621455339,-500.0,0.00011283,2]
[353169545,1739621455349,-500.0,0.00011283,2]
[353169546,1739621455359,-698.15,0.00011283,2]
[353169547,1739621455368,-500.0,0.00011283,2]
[353169548,1739621455378,-1170.76,0.00011283,2]
[353169549,1739621455388,-500.0,0.00011283,2]
[353169550,1739621455398,-500.0,0.00011283,2]
[353169551,1739621455408,-500.0,0.00011283,2]
[353169552,1739621455417,-500.0,0.00011283,2]
[353169553,1739621455427,-570.85,0.00011283,2]
[353169554,1739621455437,-566.01,0.00011283,2]
[353169555,1739621455447,-500.0,0.00011283,2]
[353169556,1739621455456,-972.03,0.00011283,2]
[353169557,1739621455466,-500.0,0.00011283,2]
[353169558,1739621455476,-716.92,0.00011283,2]
[353169559,1739621455486,-500.0,0.00011283,2]
[353169560,1739621455495,-1044.77,0.00011283,2]
[353169561,1739621455505,-566.87,0.00011283,2]
[353169562,1739621455515,-563.88,0.00011283,2]
[353169563,1739621455525,-873.28,0.00011283,2]
[353169564,1739621455535,-500.0,0.00011283,2]
[353169565,1739621455545,-556.54,0.00011283,2]
[353169566,1739621455554,-500.0,0.00011283,2]
[353169567,1739621455565,-500.0,0.00011283,2]
[353169568,1739621455574,-1007.66,0.00011283,2]
[353169569,1739621455584,-500.0,0.00011283,2]
[353169570,1739621455594,-359.56,0.00011283,2]
[353169571,1739621455603,-500.0,0.00011283,2]
[353169572,1739621455613,-549.48,0.00011283,2]
[353169573,1739621455622,-184.85995474,0.00011283,2]
[353169574,1739621455631,-341.88616527,0.00011283,2]
[353169575,1739621455661,-163.55383473,0.00011283,2]
[353169576,1739621455671,-500.0,0.00011283,2]
[353169577,1739621455682,-822.91437527,0.00011283,2]
[353169578,1739621455694,-438.96562473,0.00011283,2]
[353169579,1739621455705,-30.70367034,0.00011283,2]
[353169580,1739621455716,-469.29632966,0.00011283,2]
[353169581,1739621455725,-451.26051937,0.00011283,2]
[353169582,1739621490548,583.91765972,6.781e-05,7]
[353169583,1739621491230,1222.17206088,6.781e-05,7]
[353169584,1739621491257,65610.50630212,6.781e-05,7]
[353169589,1739622385799,314.89,8.465e-05,2]
[353169598,1739622484222,200.20927248,8.338e-05,2]
[353169620,1739622608400,203.62113033,8.296e-05,2]
[353169641,1739622631622,-544.80401356,0.0001,2]
[353169642,1739622631633,-2201.57792837,0.0001,2]
[353169647,1739622631678,-4183.5135596,0.0001,2]
[353169650,1739622631689,-1722.96518487,0.0001,2]
[353169675,1739622637510,-1022.63750171,0.0001,2]
[353169677,1739622637523,-865.68892614,0.0001,2]
[353169691,1739622637645,-13324.76430896,0.0001,2]
[353169702,1739622637741,-1369.714304,0.0001,2]
[353169843,1739622639690,-800.6046,0.0001,2]
[353169848,1739622642728,-7806.74460825,0.0001,2]
[353169849,1739622642739,-3103.3582,0.0001,2]
[353169851,1739622642844,-17315.31380445,0.0001,2]
[353169852,1739622642853,-900.0,0.00010068,2]
[353169853,1739622642863,-500.0,0.00010068,2]
[353169854,1739622642873,-1000.0,0.00010068,2]
[353169855,1739622642882,-288.36,0.00010137,2]
[353169856,1739622642892,-354.88,0.00010137,2]
[353169857,1739622642901,-1000.0,0.00010383,2]
[353169858,1739622642910,-565.74,0.00010391,2]
[353169859,1739622642919,-6876.51469965,0.0001049,2]
[353169860,1739622642929,-497.41,0.00010532,2]
[353169861,1739622642938,-158.509536,0.00010533,2]
[353169862,1739622642948,-314.89,0.00010729,2]
[353169863,1739622642958,-500.6,0.00010759,2]
[353169864,1739622642968,-26045.71579683,0.00011091,2]
[353169865,1739622642978,-500.0,0.00011117,2]
[353169866,1739622642988,-500.0,0.00011117,2]
[353169867,1739622642997,-500.0,0.00011117,2]
[353169868,1739622643006,-524.52,0.00011117,2]
[353169869,1739622643016,-500.0,0.00011117,2]
[353169870,1739622643025,-500.0,0.00011117,2]
[353169871,1739622643035,-500.0,0.00011117,2]
[353169872,1739622643044,-500.0,0.00011117,2]
[353169873,1739622643054,-500.0,0.00011117,2]
[353169874,1739622643063,-500.0,0.00011117,2]
[353169875,1739622643072,-500.0,0.00011117,2]
[353169878,1739622643081,-500.0,0.00011117,2]
[353169880,1739622643090,-500.0,0.00011117,2]
[353169881,1739622643100,-500.0,0.00011117,2]
[353169882,1739622643109,-500.0,0.00011117,2]
[353169883,1739622643119,-500.0,0.00011117,2]
[353169884,1739622643128,-500.0,0.00011117,2]
[353169885,1739622643136,-507.27918247,0.00011117,2]
[353169886,1739622643144,-500.0,0.00011117,2]
[353169887,1739622643153,-500.0,0.00011117,2]
[353169888,1739622643163,-500.0,0.00011117,2]
[353169889,1739622643172,-500.0,0.00011117,2]
[353169890,1739622643182,-500.0,0.00011117,2]
[353169891,1739622643191,-500.0,0.00011117,2]
[353169892,1739622643201,-500.0,0.00011117,2]
[353169893,1739622643210,-500.0,0.00011117,2]
[353169894,1739622643219,-622.45,0.00011117,2]
[353169895,1739622643229,-500.0,0.00011117,2]
[353169896,1739622643239,-500.0,0.00011117,2]
[353169897,1739622643248,-500.0,0.00011117,2]
[353169898,1739622643257,-500.0,0.00011117,2]
[353169899,1739622643267,-500.0,0.00011117,2]
[353169900,1739622643276,-500.0,0.00011117,2]
[353169901,1739622643286,-500.0,0.00011117,2]
[353169902,1739622643295,-500.0,0.00011117,2]
[353169903,1739622643304,-500.0,0.00011117,2]
[353169904,1739622643314,-500.0,0.00011117,2]
[353169905,1739622643323,-500.0,0.00011117,2]
[353169906,1739622643333,-500.0,0.00011117,2]
[353169907,1739622643343,-500.0,0.00011117,2]
[353169908,1739622643355,-500.0,0.00011117,2]
[353169909,1739622643364,-500.0,0.00011117,2]
[353169910,1739622643373,-500.0,0.00011117,2]
[353169911,1739622643383,-500.0,0.00011117,2]
[353169912,1739622643394,-500.0,0.00011117,2]
[353169913,1739622643404,-500.0,0.00011117,2]
[353169914,1739622643413,-500.0,0.00011117,2]
[353169915,1739622643426,-500.0,0.00011117,2]
[353169916,1739622643437,-500.0,0.00011117,2]
[353169917,1739622643446,-500.0,0.00011117,2]
[353169918,1739622643456,-500.0,0.00011117,2]
[353169919,1739622643465,-500.0,0.00011117,2]
[353169920,1739622643475,-500.0,0.00011117,2]
[353169921,1739622643487,-500.0,0.00011117,2]
[353169922,1739622643496,-500.0,0.00011117,2]
[353169923,1739622643505,-500.0,0.00011117,2]
[353169924,1739622643515,-500.0,0.00011117,2]
[353169925,1739622643524,-500.0,0.00011117,2]
[353169926,1739622643534,-556.0,0.00011117,2]
[353169927,1739622643543,-500.0,0.00011117,2]
[353169928,1739622643553,-500.0,0.00011117,2]
[353169929,1739622643562,-510.84,0.00011117,2]
[353169930,1739622643571,-500.0,0.00011117,2]